fUSD/lending_fUSD_20260324
["ID","MTS","AMOUNT","RATE_DAILY","PERIOD"]
[408885560,1774390238880,-422.58467,0.000158,2]
[408885562,1774390238895,-707.17206476,0.000158,2]
[408885564,1774390238906,-15597.66428441,0.000158,2]
[408885566,1774390238917,-12496.31740234,0.000158,2]
[408885568,1774390238928,-60534.1104995,0.000158,2]
[408885572,1774390238955,-12281.58936112,0.000158,2]
[408885574,1774390238968,-2589.49791791,0.000158,2]
[408885598,1774390240507,-201.145137,0.00015004,7]
[408885599,1774390240517,-162.76391818,0.0001574,2]
[408885600,1774390240528,-386.48561211,0.0001574,2]
[408885601,1774390240539,-415.0,0.00015772,2]
[408885602,1774390240548,-549.24953029,0.0001578,2]
[408885603,1774390240558,-398606.65860165,0.000158,2]
[408885604,1774390240568,-2949.76,0.000158,2]
[408885605,1774390240577,-4042.65,0.000158,2]
[408885606,1774390240587,-3491.13,0.000158,2]
[408885607,1774390240596,-301.3567171,0.000158,2]
[408885608,1774390240605,-400.0,0.000158,5]
[408885609,1774390240614,-419.68592603,0.000158,2]
[408885610,1774390240623,-2779.77342698,0.00015801,2]
[408885611,1774390240633,-549.24953029,0.0001582,2]
[408885612,1774390240642,-13882.39336181,0.00015823,2]
[408885613,1774390240651,-350.0,0.00015834,2]
[408885614,1774390240660,-54871.41163156,0.0001584,2]
[408885615,1774390240670,-419.33751,0.0001584,2]
[408885616,1774390240679,-419.33751,0.0001584,2]
[408885617,1774390240689,-177.1096489,0.00015849,2]
[408885618,1774390240698,-419.33752,0.0001585,2]
[408885619,1774390240707,-419.68592603,0.0001585,2]
[408885620,1774390240717,-549.24953029,0.0001586,2]
[408885621,1774390240726,-150.0,0.00015864,2]
[408885622,1774390240735,-500.0,0.00015872,2]
[408885623,1774390240744,-200.0,0.00015872,2]
[408885624,1774390240753,-25000.0,0.00015891,3]
[408885625,1774390240763,-4000.0,0.00015895,2]
[408885626,1774390240772,-501.32590784,0.00015896,2]
[408885627,1774390240782,-400.0,0.00015899,2]
[408885628,1774390240793,-400.0,0.00015899,2]
[408885629,1774390240802,-400.0,0.00015899,2]
[408885630,1774390240812,-400.0,0.00015899,2]
[408885631,1774390240821,-303.81257237,0.00015899,2]
[408885632,1774390240831,-151.31357891,0.00015899,2]
[408885633,1774390240841,-1000.0,0.000159,2]
[408885635,1774390240850,-2660.7211,0.000159,2]
[408885637,1774390240860,-25000.0,0.000159,3]
[408885639,1774390240870,-10000.0,0.000159,2]
[408885641,1774390240880,-523.6026987,0.000159,2]
[408885643,1774390240891,-15947.36084928,0.000159,3]
[408885645,1774390240901,-3013.0,0.000159,2]
[408885647,1774390240911,-7083.20464131,0.000159,2]
[408885649,1774390240921,-301.3567171,0.000159,2]
[408885651,1774390240932,-800.0,0.000159,5]
[408885653,1774390240948,-13882.39336181,0.000159,2]
[408885656,1774390240958,-2779.77342698,0.000159,2]
[408885657,1774390240967,-419.68592603,0.000159,2]
[408885659,1774390240978,-150.0,0.000159,2]
[408885660,1774390240988,-549.24953029,0.000159,2]
[408885661,1774390240997,-2246.0,0.000159,5]
[408885662,1774390241008,-327.41460412,0.000159,2]
[408885663,1774390241018,-200.0,0.00015904,2]
[408885664,1774390241027,-150.0,0.0001592,2]
[408885665,1774390241038,-504.19292087,0.00015921,2]
[408885666,1774390241048,-1000.0,0.00015921,2]
[408885667,1774390241058,-1000.0,0.00015921,2]
[408885668,1774390241068,-1000.0,0.00015921,2]
[408885669,1774390241078,-1000.0,0.00015921,2]
[408885670,1774390241087,-1000.0,0.00015921,2]
[408885671,1774390241097,-1000.0,0.00015921,2]
[408885672,1774390241107,-1000.0,0.00015921,2]
[408885673,1774390241116,-150.0,0.00015934,2]
[408885675,1774390241126,-399.1,0.00015961,2]
[408885676,1774390241137,-400.0,0.0001597,2]
[408885677,1774390241148,-500.0,0.00015973,2]
[408885678,1774390241158,-500.80504455,0.00015973,2]
[408885679,1774390241167,-500.0,0.00015973,2]
[408885680,1774390241177,-347.94216551,0.00015973,2]
[408885681,1774390241187,-500.0,0.00015973,2]
[408885682,1774390241196,-500.0,0.00015973,2]
[408885683,1774390241206,-500.0,0.00015973,2]
[408885684,1774390241216,-500.0,0.00015973,2]
[408885685,1774390241226,-501.83982769,0.00015973,2]
[408885686,1774390241235,-504.53937836,0.00015973,2]
[408885687,1774390241245,-500.43058459,0.00015973,2]
[408885688,1774390241254,-500.0,0.00015973,2]
[408885689,1774390241264,-348.67349795,0.00015973,2]
[408885690,1774390241285,-500.65903266,0.00015973,2]
[408885691,1774390241296,-500.0,0.00015973,2]
[408885692,1774390241307,-500.0,0.00015973,2]
[408885693,1774390241318,-500.0,0.00015973,2]
[408885694,1774390241328,-500.0,0.00015973,2]
[408885695,1774390241339,-59588.20477193,0.0001599,2]
[408885696,1774390241349,-150.0,0.00015992,2]
[408885697,1774390241359,-156.616032,0.00015997,2]
[408885698,1774390241369,-666.0,0.00015999,2]
[408885699,1774390241379,-2789.2606982,0.00015999,2]
[408885700,1774390241389,-266017.8826468,0.00015999,2]
[408885701,1774390241399,-2148.7773224,0.00015999,2]
[408885702,1774390241409,-127709.1512082,0.00015999,2]
[408885703,1774390241419,-182.06583739,0.00015999,2]
[408885704,1774390241429,-327.39078879,0.00015999,2]
[408885705,1774390241439,-351.58937214,0.00015999,2]
[408885706,1774390241449,-2500167.68918924,0.00016,2]
[408885707,1774390241536,-146.46976831,0.00016,2]
[408885708,1774390241648,-266.13739675,0.00016,2]
[408885746,1774390243761,-3280.22797046,0.00016,2]
[408885753,1774390243856,-1375.28877313,0.00016,2]
[408885754,1774390243871,-722.8955016,0.00016,2]
[408885755,1774390243887,-679.80697507,0.00016,2]
[408885756,1774390246216,-1026.36807877,0.00016,2]
[408885757,1774390246276,-745.0,0.00016,2]
[408885758,1774390246337,-5098.80000001,0.00016,2]
[408885759,1774390246348,-1261.267356,0.00016,2]
[408885783,1774390391298,1317.19,0.00011507,2]
[408885786,1774391244133,-862.731951,0.00013528,2]
[408885787,1774391244155,-877.40891199,0.00013597,2]
[408885796,1774391432914,-2000.0,0.00013427,2]
[408885797,1774391432924,-500.0,0.00013428,2]
[408885798,1774391432936,-70.70108801,0.00013597,2]
[408885799,1774391432946,-150.0,0.00013619,2]
[408885800,1774391432957,-150.0,0.00013619,14]
[408885801,1774391432968,-2088.51,0.00013699,2]
[408885802,1774391432978,-2192.98,0.00013799,2]
[408885803,1774391432989,-858.58915074,0.00013802,2]
[408885804,1774391433000,-151.46120115,0.00013817,2]
[408885805,1774391433011,-500.0,0.00013873,2]
[408885806,1774391433021,-500.0,0.00013873,2]
[408885807,1774391433031,-500.0,0.00013873,2]
[408885808,1774391433040,-500.0,0.00013873,2]
[408885809,1774391433051,-500.0,0.00013873,2]
[408885810,1774391433062,-300.0,0.00013889,2]
[408885811,1774391433072,-1200.0,0.00013889,2]
[408885812,1774391433083,-300.0,0.00013889,2]
[408885813,1774391433092,-254.0,0.00013889,2]
[408885814,1774391433103,-150.0,0.00013889,2]
[408885815,1774391433112,-300.0,0.00013889,2]
[408885816,1774391433125,-418.77245843,0.00013889,2]
[408885817,1774391433134,-500.0,0.00013889,2]
[408885818,1774391433144,-300.0,0.00013889,2]
[408885819,1774391433154,-500.0,0.00013889,2]
[408885820,1774391433164,-350.0,0.00013889,2]
[408885821,1774391433176,-36355.29240272,0.0001389,2]
[408885822,1774391433199,-1862.303204,0.0001389,2]
[408885823,1774391433238,-207312.74416517,0.0001389,2]
[408885824,1774391433251,-55678.07285464,0.0001389,2]
[408885825,1774391433264,-4945.03447467,0.0001389,2]
[408885826,1774391433294,-360.80856145,0.0001389,2]
[408885827,1774391433306,-305.73479737,0.0001389,2]
[408885829,1774391438292,-2646.84018329,0.0001389,2]
[408885830,1774391438306,-1443.24586699,0.0001389,2]
[408885831,1774391438319,-1289.70094787,0.0001389,2]
[408885832,1774391438352,-589875.06244183,0.0001389,2]
[408885833,1774391438362,-396139.66825687,0.0001389,2]
[408885834,1774391438472,-53200.3487441,0.0001389,2]
[408885835,1774391438484,-4509.0,0.0001389,2]
[408885836,1774391438497,-5197.90618086,0.0001389,2]
[408885875,1774391440710,-790600.10071817,0.0001389,2]
[408885876,1774391440719,-715.57268625,0.000139,2]
[408885877,1774391440728,-1600.0,0.00013903,2]
[408885878,1774391440738,-200.0,0.00013903,2]
[408885879,1774391440747,-13216.31,0.00013903,2]
[408885880,1774391440756,-3240.0,0.00013903,2]
[408885881,1774391440765,-200.0,0.00013982,2]
[408885882,1774391440775,-132646.18715259,0.0001399,2]
[408885883,1774391440784,-511.0,0.00014,2]
[408885884,1774391440793,-805.73,0.00014014,2]
[408885885,1774391440803,-9999.99,0.00014014,2]
[408885886,1774391440812,-150.99,0.00014014,2]
[408885887,1774391440821,-1852.03794754,0.0001421,7]
[408885888,1774391440830,-500.0,0.00014224,2]
[408885889,1774391440839,-500.0,0.00014224,2]
[408885890,1774391440849,-59588.20477193,0.00014225,2]
[408885891,1774391440858,-299.99,0.00014225,2]
[408885892,1774391440867,-353.69,0.00014225,2]
[408885893,1774391440876,-9746.53,0.00014225,2]
[408885894,1774391440886,-150.99,0.00014225,2]
[408885895,1774391440895,-9442.91,0.00014225,2]
[408885896,1774391440904,-7598.95,0.00014225,2]
[408885897,1774391440913,-5030.46,0.00014225,2]
[408885898,1774391440923,-715.57268619,0.00014233,2]
[408885899,1774391440932,-665.0,0.00014253,2]
[408885900,1774391440941,-617.0,0.00014287,2]
[408885901,1774391440951,-1810.7528,0.00014304,2]
[408885902,1774391440960,-2903.024,0.00014304,2]
[408885903,1774391440969,-3025.21803529,0.00014305,2]
[408885904,1774391440979,-1387.0,0.00014315,2]
[408885905,1774391440988,-329.0,0.00014322,2]
[408885906,1774391440998,-214.4442,0.00014333,2]
[408885907,1774391441007,-211.0,0.00014336,2]
[408885908,1774391441017,-159.0,0.0001434,2]
[408885909,1774391441026,-500.0,0.00014356,2]
[408885910,1774391441035,-500.0,0.00014356,2]
[408885911,1774391441045,-237.0,0.00014381,2]
[408885912,1774391441054,-500.0,0.00014384,2]
[408885913,1774391441064,-2088.51,0.00014384,2]
[408885914,1774391441073,-224.6678603,0.00014395,2]
[408885915,1774391441082,-500.0,0.00014404,2]
[408885916,1774391441091,-32991.3775,0.00014405,2]
[408885917,1774391441102,-2500.0,0.00014405,2]
[408885918,1774391441112,-1000.0,0.00014421,2]
[408885920,1774391441121,-1000.0,0.00014421,2]
[408885921,1774391441131,-1000.0,0.00014421,2]
[408885922,1774391441139,-1000.0,0.00014421,2]
[408885923,1774391441151,-1002.26356186,0.00014421,2]
[408885924,1774391441162,-319.28,0.0001443,2]
[408885925,1774391441172,-17920.00746958,0.00014438,2]
[408885926,1774391441182,-153.0,0.00014442,2]
[408885927,1774391441192,-500.0,0.00014496,2]
[408885928,1774391441202,-500.0,0.00014496,2]
[408885929,1774391441213,-500.0,0.00014496,2]
[408885930,1774391441223,-500.0,0.00014496,2]
[408885931,1774391441233,-200.0,0.00014496,2]
[408885932,1774391441245,-500.0,0.00014496,2]
[408885933,1774391441254,-594.44777877,0.00014496,2]
[408885934,1774391441265,-500.0,0.00014496,2]
[408885935,1774391441275,-151.0,0.00014496,2]
[408885936,1774391441286,-151.0,0.00014496,2]
[408885937,1774391441296,-151.0,0.00014496,2]
[408885938,1774391441306,-151.0,0.00014496,2]
[408885939,1774391441316,-151.0,0.00014496,2]
[408885940,1774391441326,-151.0,0.00014496,2]
[408885941,1774391441337,-162.73195103,0.00014496,2]
[408885942,1774391441346,-151.0,0.00014496,2]
[408885943,1774391441355,-151.0,0.00014496,2]
[408885944,1774391441364,-151.0,0.00014496,2]
[408885945,1774391441373,-233.20791569,0.00014496,2]
[408885946,1774391441382,-151.0,0.00014496,2]
[408885947,1774391441393,-151.0,0.00014496,2]
[408885948,1774391441403,-150.0,0.000145,2]
[408885949,1774391441412,-204.87462253,0.00014504,2]
[408885950,1774391441426,-500.0,0.00014504,2]
[408885951,1774391441437,-500.0,0.00014504,2]
[408885952,1774391441447,-500.0,0.00014504,2]
[408885953,1774391441458,-500.0,0.00014504,2]
[408885954,1774391441467,-500.0,0.00014504,2]
[408885955,1774391441477,-500.0,0.00014504,2]
[408885956,1774391441487,-500.0,0.00014504,2]
[408885957,1774391441499,-500.0,0.00014504,2]
[408885958,1774391441508,-500.0,0.00014504,2]
[408885959,1774391441517,-500.0,0.00014504,2]
[408885960,1774391441526,-500.0,0.00014504,2]
[408885961,1774391441535,-500.0,0.00014504,2]
[408885962,1774391441544,-519.39340365,0.00014504,2]
[408885963,1774391441553,-3025.21803526,0.00014533,2]
[408885964,1774391441562,-260.0,0.00014538,2]
[408885965,1774391441571,-17920.00746951,0.000146,2]
[408885966,1774391441581,-991.62,0.00014633,2]
[408885967,1774391441590,-500.0,0.00014678,2]
[408885968,1774391441599,-207.58697017,0.000147,2]
[408885969,1774391441608,-492.55529358,0.000147,2]
[408885970,1774391441617,-350.07113187,0.000147,2]
[408885971,1774391441626,-401.59826873,0.000147,2]
[408885972,1774391441635,-5000.0,0.00014739,2]
[408885973,1774391441643,-3025.21803526,0.00014761,2]
[408885974,1774391441652,-17920.00746951,0.00014763,2]
[408885975,1774391441661,-234.39453643,0.00014769,2]
[408885976,1774391441670,-2468.32176917,0.00014769,2]
[408885977,1774391441679,-1369.35670876,0.00014773,2]
[408885978,1774391441688,-1071.37174092,0.00014773,2]
[408885979,1774391441698,-151.0,0.00014836,2]
[408885980,1774391441707,-500.0,0.00014838,2]
[408885981,1774391441716,-500.0,0.00014838,2]
[408885982,1774391441725,-500.0,0.00014838,2]
[408885983,1774391441734,-500.0,0.00014838,2]
[408885984,1774391441743,-500.0,0.00014838,2]
[408885985,1774391441752,-500.0,0.00014838,2]
[408885986,1774391441761,-500.0,0.00014838,2]
[408885987,1774391441770,-500.0,0.00014838,2]
[408885988,1774391441779,-500.0,0.00014838,2]
[408885989,1774391441787,-500.0,0.00014838,2]
[408885990,1774391441797,-500.0,0.00014838,2]
[408885991,1774391441806,-500.0,0.00014838,2]
[408885992,1774391441815,-500.0,0.00014838,2]
[408885993,1774391441824,-500.0,0.00014838,2]
[408885994,1774391441833,-631.81161049,0.00014838,2]
[408885995,1774391441842,-534.8771196,0.00014838,2]
[408885996,1774391441852,-500.0,0.00014838,2]
[408885997,1774391441861,-500.0,0.00014838,2]
[408885998,1774391441870,-500.0,0.00014838,2]
[408885999,1774391441879,-500.0,0.00014838,2]
[408886000,1774391441887,-500.0,0.00014838,2]
[408886001,1774391441896,-500.0,0.00014838,2]
[408886002,1774391441906,-500.0,0.00014838,2]
[408886003,1774391441916,-500.0,0.00014838,2]
[408886004,1774391441927,-500.0,0.00014838,2]
[408886005,1774391441936,-1032.0,0.00014838,2]
[408886006,1774391441946,-500.0,0.00014838,2]
[408886007,1774391441956,-500.0,0.00014838,2]
[408886008,1774391441966,-500.0,0.00014838,2]
[408886009,1774391441976,-500.0,0.00014838,2]
[408886010,1774391441986,-411.74553912,0.00014838,2]
[408886011,1774391441997,-531.3420411,0.00014838,2]
[408886012,1774391442007,-500.0,0.00014873,2]
[408886013,1774391442016,-500.0,0.00014873,2]
[408886014,1774391442025,-500.0,0.00014873,2]
[408886015,1774391442034,-504.19292087,0.00014873,2]
[408886016,1774391442044,-501.32590784,0.00014873,2]
[408886017,1774391442053,-500.0,0.00014873,2]
[408886018,1774391442062,-500.0,0.00014873,2]
[408886019,1774391442072,-500.0,0.00014873,2]
[408886020,1774391442082,-500.0,0.00014873,2]
[408886021,1774391442092,-500.0,0.00014873,2]
[408886022,1774391442101,-500.0,0.00014873,2]
[408886023,1774391442111,-500.0,0.00014873,2]
[408886024,1774391442120,-500.0,0.00014873,2]
[408886025,1774391442129,-500.0,0.00014873,2]
[408886026,1774391442138,-500.84657428,0.00014873,2]
[408886027,1774391442147,-3191.17,0.000149,2]
[408886028,1774391442157,-4486.15,0.000149,2]
[408886029,1774391442166,-4292.13,0.000149,2]
[408886030,1774391442175,-17920.00746951,0.00014925,2]
[408886031,1774391442184,-500.0,0.00014952,2]
[408886032,1774391442194,-1000.0,0.00014968,2]
[408886033,1774391442204,-197.81018147,0.00014968,2]
[408886034,1774391442213,-1500.0,0.00014968,2]
[408886035,1774391442222,-1500.0,0.00014968,2]
[408886036,1774391442231,-3025.21803526,0.00014989,2]
[408886037,1774391442240,-151.0,0.00014997,2]
[408886038,1774391442250,-1071.37174088,0.00014998,2]
[408886039,1774391442259,-500.0,0.00014999,2]
[408886040,1774391442268,-500.0,0.00014999,2]
[408886041,1774391442278,-500.0,0.00015,2]
[408886042,1774391442287,-500.0,0.00015,2]
[408886043,1774391442296,-500.0,0.00015,2]
[408886044,1774391442305,-500.0,0.00015,2]
[408886045,1774391442315,-500.0,0.00015,2]
[408886046,1774391442324,-500.0,0.00015,2]
[408886047,1774391442333,-500.0,0.00015,2]
[408886048,1774391442342,-500.0,0.00015,2]
[408886049,1774391442352,-500.0,0.00015,2]
[408886050,1774391442361,-500.0,0.00015,2]
[408886051,1774391442371,-500.0,0.00015,2]
[408886052,1774391442380,-500.0,0.00015,2]
[408886053,1774391442389,-500.0,0.00015,2]
[408886054,1774391442399,-500.0,0.00015,2]
[408886055,1774391442408,-500.0,0.00015,2]
[408886056,1774391442423,-500.0,0.00015,2]
[408886057,1774391442432,-500.0,0.00015,2]
[408886058,1774391442441,-500.0,0.00015,2]
[408886059,1774391442450,-500.0,0.00015,2]
[408886060,1774391442462,-500.0,0.00015,2]
[408886061,1774391442471,-500.0,0.00015,2]
[408886062,1774391442480,-500.0,0.00015,2]
[408886063,1774391442491,-500.0,0.00015,2]
[408886064,1774391442500,-500.0,0.00015,2]
[408886065,1774391442510,-500.0,0.00015,2]
[408886066,1774391442519,-500.0,0.00015,2]
[408886067,1774391442528,-446.93,0.00015,2]
[408886068,1774391442537,-500.0,0.00015,2]
[408886069,1774391442547,-500.0,0.00015,2]
[408886070,1774391442556,-500.0,0.00015,2]
[408886071,1774391442565,-500.0,0.00015,2]
[408886072,1774391442574,-500.0,0.00015,2]
[408886073,1774391442583,-500.0,0.00015,2]
[408886074,1774391442593,-500.0,0.00015,2]
[408886075,1774391442602,-500.0,0.00015,2]
[408886076,1774391442612,-500.0,0.00015,2]
[408886077,1774391442622,-500.0,0.00015,2]
[408886078,1774391442632,-500.0,0.00015,2]
[408886079,1774391442641,-500.0,0.00015,2]
[408886080,1774391442650,-500.0,0.00015,2]
[408886081,1774391442659,-500.0,0.00015,2]
[408886082,1774391442668,-500.0,0.00015,2]
[408886083,1774391442677,-500.0,0.00015,2]
[408886084,1774391442686,-500.0,0.00015,2]
[408886085,1774391442695,-500.0,0.00015,2]
[408886086,1774391442704,-500.0,0.00015,2]
[408886087,1774391442713,-500.0,0.00015,2]
[408886088,1774391442722,-500.0,0.00015,2]
[408886089,1774391442731,-500.0,0.00015,2]
[408886090,1774391442740,-500.0,0.00015,2]
[408886091,1774391442750,-500.0,0.00015,2]
[408886092,1774391442760,-500.0,0.00015,2]
[408886093,1774391442769,-500.0,0.00015,2]
[408886094,1774391442779,-500.0,0.00015,2]
[408886095,1774391442788,-500.0,0.00015,2]
[408886096,1774391442797,-365.02,0.00015,2]
[408886097,1774391442806,-2064.14574728,0.00015,2]
[408886098,1774391442816,-8035.78795788,0.00015,2]
[408886099,1774391442825,-255.0,0.00015014,2]
[408886100,1774391442835,-154.2157237,0.00015021,2]
[408886101,1774391442844,-200.0,0.00015044,2]
[408886102,1774391442853,-423.0,0.00015059,2]
[408886103,1774391442863,-418.22,0.00015059,2]
[408886104,1774391442872,-2088.51,0.00015068,2]
[408886105,1774391442881,-3061.0,0.00015075,2]
[408886106,1774391442890,-17920.00746951,0.00015088,2]
[408886107,1774391442900,-2000.0,0.00015105,2]
[408886108,1774391442909,-1032.0,0.00015112,2]
[408886109,1774391442919,-578.20924308,0.00015127,2]
[408886110,1774391442928,-500.0,0.00015127,2]
[408886111,1774391442941,-500.0,0.00015127,2]
[408886112,1774391442951,-151.0,0.00015127,2]
[408886113,1774391442961,-500.0,0.00015127,2]
[408886114,1774391442970,-9552.16786547,0.00015127,2]
[408886115,1774391442979,-721.12765535,0.00015127,2]
[408886116,1774391442990,-500.0,0.00015127,2]
[408886117,1774391443000,-500.0,0.00015127,2]
[408886118,1774391443009,-500.0,0.00015127,2]
[408886119,1774391443018,-500.0,0.00015127,2]
[408886120,1774391443028,-500.0,0.00015127,2]
[408886121,1774391443037,-500.0,0.00015127,2]
[408886122,1774391443046,-500.0,0.00015127,2]
[408886123,1774391443056,-500.0,0.00015127,2]
[408886125,1774391443067,-500.0,0.00015127,2]
[408886127,1774391443076,-500.0,0.00015127,2]
[408886128,1774391443085,-500.0,0.00015127,2]
[408886130,1774391443094,-500.0,0.00015127,2]
[408886131,1774391443104,-500.0,0.00015127,2]
[408886132,1774391443113,-500.0,0.00015127,2]
[408886133,1774391443122,-500.0,0.00015127,2]
[408886134,1774391443131,-500.0,0.00015127,2]
[408886135,1774391443141,-500.0,0.00015127,2]
[408886136,1774391443150,-500.0,0.00015127,2]
[408886137,1774391443159,-500.0,0.00015127,2]
[408886138,1774391443168,-500.0,0.00015127,2]
[408886139,1774391443178,-500.0,0.00015127,2]
[408886140,1774391443187,-500.0,0.00015127,2]
[408886141,1774391443196,-500.0,0.00015127,2]
[408886142,1774391443206,-500.0,0.00015127,2]
[408886143,1774391443215,-500.0,0.00015127,2]
[408886144,1774391443224,-500.0,0.00015127,2]
[408886146,1774391443234,-500.0,0.00015127,2]
[408886147,1774391443244,-500.0,0.00015127,2]
[408886148,1774391443253,-151.0,0.00015127,2]
[408886149,1774391443262,-500.0,0.00015127,2]
[408886150,1774391443273,-200.0,0.00015127,2]
[408886151,1774391443283,-500.0,0.00015127,2]
[408886152,1774391443292,-500.0,0.00015127,2]
[408886153,1774391443302,-174.61919141,0.00015127,2]
[408886154,1774391443311,-693.3919763,0.00015127,2]
[408886155,1774391443320,-250.0,0.00015127,2]
[408886156,1774391443329,-250.0,0.00015127,2]
[408886157,1774391443338,-250.0,0.00015127,2]
[408886158,1774391443347,-250.0,0.00015127,2]
[408886159,1774391443357,-250.0,0.00015127,2]
[408886160,1774391443367,-151.0,0.00015127,2]
[408886162,1774391443376,-209.40437684,0.00015127,2]
[408886164,1774391443385,-250.0,0.00015127,2]
[408886165,1774391443395,-199.96671726,0.00015127,2]
[408886166,1774391443404,-250.0,0.00015127,2]
[408886167,1774391443414,-250.0,0.00015127,2]
[408886168,1774391443428,-250.0,0.00015127,2]
[408886169,1774391443438,-250.0,0.00015127,2]
[408886170,1774391443447,-250.0,0.00015127,2]
[408886171,1774391443456,-209.40437684,0.00015127,2]
[408886172,1774391443468,-279.9045709,0.00015127,2]
[408886173,1774391443478,-262.90206542,0.00015127,2]
[408886174,1774391443487,-743.50770149,0.00015127,2]
[408886175,1774391443497,-500.0,0.00015127,2]
[408886176,1774391443506,-500.0,0.00015127,2]
[408886177,1774391443515,-500.0,0.00015127,2]
[408886178,1774391443525,-500.0,0.00015127,2]
[408886179,1774391443534,-500.0,0.00015127,2]
[408886180,1774391443543,-421.89940396,0.00015137,2]
[408886181,1774391443552,-1000.0,0.00015139,2]
[408886182,1774391443561,-308.55447559,0.00015152,2]
[408886183,1774391443571,-900.0,0.00015169,2]
[408886184,1774391443580,-500.0,0.00015182,2]
[408886185,1774391443590,-9905.5980765,0.00015182,2]
[408886186,1774391443599,-151.0,0.00015182,2]
[408886187,1774391443609,-272.62944185,0.00015182,2]
[408886188,1774391443619,-990.448404,0.000152,2]
[408886189,1774391443635,-160.0,0.00015202,7]
[408886190,1774391443646,-227.842475,0.00015202,7]
[408886191,1774391443656,-295.68495,0.00015202,7]
[408886192,1774391443667,-3025.21803526,0.00015216,2]
[408886193,1774391443678,-420.0,0.00015218,2]
[408886194,1774391443688,-420.0,0.00015218,2]
[408886195,1774391443698,-1071.37174088,0.00015224,2]
[408886196,1774391443707,-500.0,0.00015226,2]
[408886197,1774391443716,-500.0,0.00015237,2]
[408886198,1774391443724,-10272.10520533,0.00015237,2]
[408886199,1774391443734,-151.0,0.00015237,2]
[408886200,1774391443743,-282.71673119,0.00015237,2]
[408886201,1774391443753,-17920.00746951,0.0001525,2]
[408886202,1774391443762,-1680.0,0.00015278,2]
[408886204,1774391443771,-500.0,0.00015292,2]
[408886206,1774391443780,-10652.17309792,0.00015292,2]
[408886208,1774391443789,-151.0,0.00015292,2]
[408886209,1774391443798,-293.17725025,0.00015292,2]
[408886210,1774391443807,-1115.0,0.0001531,2]
[408886211,1774391443816,-500.0,0.00015347,2]
[408886213,1774391443825,-11046.30350255,0.00015347,2]
[408886214,1774391443835,-151.0,0.00015347,2]
[408886215,1774391443843,-304.02480851,0.00015347,2]
[408886216,1774391443852,-168.0,0.00015361,2]
[408886217,1774391443862,-1032.0,0.00015386,2]
[408886218,1774391443871,-500.0,0.00015402,2]
[408886219,1774391443881,-11455.01673214,0.00015402,2]
[408886220,1774391443890,-151.0,0.00015402,2]
[408886221,1774391443899,-315.27372642,0.00015402,2]
[408886222,1774391443909,-350.0,0.00015404,2]
[408886223,1774391443919,-17920.00746951,0.00015413,2]
[408886224,1774391443927,-591.58519453,0.00015421,2]
[408886225,1774391443937,-1000.0,0.00015421,2]
[408886228,1774391443947,-883.07633678,0.00015421,2]
[408886229,1774391443956,-1000.0,0.00015421,2]
[408886230,1774391443965,-1000.0,0.00015421,2]
[408886232,1774391443975,-1000.0,0.00015421,2]
[408886233,1774391443985,-1000.0,0.00015421,2]